[Event "49th Rilton Cup 2019-20"]
[Site "Stockholm"]
[Date "2020.01.04"]
[Round "8.4"]
[White "Gagare, Shardul"]
[Black "Thybo, Jesper Sondergaard"]
[Result "1-0"]
[ECO "B51"]
[WhiteElo "2468"]
[BlackElo "2576"]
[Annotator "ChessBase"]
[PlyCount "67"]
[EventDate "2019.12.27"]
[EventType "swiss"]
[EventCountry "SWE"]
[SourceTitle "playchess.com"]
[Source "ChessBase"]
[SourceQuality "1"]
[TimeControl "40/5400+30:1800+30"]

1. e4 {[%emt 0:03:20]} c5 {[%emt 0:00:00]} 2. Nf3 {[%emt 0:00:04]} d6 {[%emt 0:00:00]} 3. Bb5+ {[%emt 0:00:06]} Nd7 {[%emt 0:00:00]} 4. O-O {[%emt 0:00:06]} a6 {[%emt 0:00:00]} 5. Bxd7+ {[%emt 0:00:33]} Bxd7 {[%emt 0:00:05]} 6. d4 {[%emt 0:00:08]} cxd4 {[%emt 0:00:19]} 7. Qxd4 {[%emt 0:00:06]} Nf6 {[%emt 0:00:31]} 8. Bg5 {[%emt 0:00:14]} h6 {[%emt 0:00:26]} 9. Bxf6 {[%emt 0:00:42]} gxf6 {[%emt 0:00:05]} 10. Nc3 {[%emt 0:01:00]} e6 {[%emt 0:00:07]} 11. Qd3 {[%emt 0:00:09]} Rc8 {[%emt 0:05:22]} 12. Nd4 {[%emt 0:06:23]} Qb6 {[%emt 0:03:28]} 13. Rab1 {[%emt 0:15:54]} h5 {[%emt 0:00:40]} 14. Kh1 {[%emt 0:12:11]} Bg7 {[%emt 0:06:55]} 15. Rfd1 {[%emt 0:11:02]} Bh6 {[%emt 0:00:33]} 16. Qg3 {[%emt 0:05:42]} Qc5 {[%emt 0:14:08]} 17. f4 {[%emt 0:11:19]} Kf8 {[%emt 0:33:36]} 18. f5 {[%emt 0:13:02]} Qe5 {[%emt 0:02:52]} 19. Qd3 {[%emt 0:00:39]} b5 {[%emt 0:12:18]} 20. fxe6 {[%emt 0:05:33]} fxe6 {[%emt 0:00:07]} 21. Nf3 {[%emt 0:01:16]} Qc5 {[%emt 0:00:27]} 22. e5 {[%emt 0:00:07]} f5 {[%emt 0:09:29]} 23. Qxd6+ {[%emt 0:00:13]} Qxd6 {[%emt 0:00:04]} 24. Rxd6 {[%emt 0:00:06]} Ke7 {[%emt 0:01:46]} 25. Rbd1 {[%emt 0:00:11]} Rc7 {[%emt 0:00:48]} 26. Nh4 {[%emt 0:00:13]} Rh7 {[%emt 0:03:26]} 27. Nxf5+ {[%emt 0:01:24]} exf5 {[%emt 0:00:11]} 28. Nd5+ {[%emt 0:00:05]} Kd8 {[%emt 0:00:05]} 29. e6 {[%emt 0:04:54]} Ra7 {[%emt 0:01:03]} 30. e7+ {[%emt 0:03:47]} Ke8 {[%emt 0:00:28]} 31. Nf6+ {[%emt 0:01:00]} Kxe7 {[%emt 0:00:07]} 32. Nxh7 {[%emt 0:00:08]} Be6 {[%emt 0:01:33]} 33. Rc6 {[%emt 0:00:46]} Bf4 {[%emt 0:00:32]} 34. Re1 {[%emt 0:00:13]} 1-0

[Event "49th Rilton Cup 2019-20"]
[Site "Stockholm"]
[Date "2020.01.04"]
[Round "8.5"]
[White "Keinanen, Toivo"]
[Black "Urkedal, Frode Olav Olsen"]
[Result "1/2-1/2"]
[ECO "A14"]
[WhiteElo "2447"]
[BlackElo "2545"]
[Annotator "ChessBase"]
[PlyCount "79"]
[EventDate "2019.12.27"]
[EventType "swiss"]
[EventCountry "SWE"]
[SourceTitle "playchess.com"]
[Source "ChessBase"]
[SourceQuality "1"]
[TimeControl "40/5400+30:1800+30"]

1. c4 {[%emt 0:00:00]} Nf6 {[%emt 0:03:49]} 2. g3 {[%emt 0:00:00]} e6 {[%emt 0:00:20]} 3. Bg2 {[%emt 0:00:00]} d5 {[%emt 0:00:05]} 4. Nf3 {[%emt 0:00:00]} Be7 {[%emt 0:00:41]} 5. O-O {[%emt 0:00:02]} O-O {[%emt 0:00:06]} 6. b3 {[%emt 0:00:01]} d4 {[%emt 0:00:08]} 7. e3 {[%emt 0:06:37]} c5 {[%emt 0:00:16]} 8. exd4 {[%emt 0:06:40]} cxd4 {[%emt 0:00:24]} 9. d3 {[%emt 0:05:35]} Nc6 {[%emt 0:00:24]} 10. Bg5 {[%emt 0:00:29]} h6 {[%emt 0:02:05]} 11. Bxf6 {[%emt 0:00:41]} Bxf6 {[%emt 0:00:06]} 12. a3 {[%emt 0:01:52]} a5 {[%emt 0:00:52]} 13. Nbd2 {[%emt 0:00:35]} Be7 {[%emt 0:03:36]} 14. Qc2 {[%emt 0:01:33]} Bd7 {[%emt 0:00:40]} 15. Qb2 {[%emt 0:19:27]} e5 {[%emt 0:03:02]} 16. Rfe1 {[%emt 0:03:24]} Qc7 {[%emt 0:01:06]} 17. Rac1 {[%emt 0:03:33]} b6 {[%emt 0:05:41]} 18. Re2 {[%emt 0:05:46]} Rfe8 {[%emt 0:19:59]} 19. c5 {[%emt 0:07:25]} bxc5 {[%emt 0:00:58]} 20. Ne4 {[%emt 0:00:13]} Rab8 {[%emt 0:18:13]} 21. Nxc5 {[%emt 0:03:49]} Bxc5 {[%emt 0:08:06]} 22. Rxc5 {[%emt 0:00:01]} Qb6 {[%emt 0:00:42]} 23. Rec2 {[%emt 0:01:59]} e4 {[%emt 0:08:05]} 24. dxe4 {[%emt 0:04:21]} Rxe4 {[%emt 0:02:12]} 25. Rd5 {[%emt 0:03:28]} Be8 {[%emt 0:04:17]} 26. Rc1 {[%emt 0:02:37]} Qxb3 {[%emt 0:01:55]} 27. Qxb3 {[%emt 0:05:07]} Rxb3 {[%emt 0:00:04]} 28. Rdc5 {[%emt 0:01:40]} Rxa3 {[%emt 0:09:40]} 29. Ne1 {[%emt 0:15:19]} Re5 {[%emt 0:00:05]} 30. Bxc6 {[%emt 0:01:09]} Rxc5 {[%emt 0:00:07]} 31. Rxc5 {[%emt 0:00:01]} Ra1 {[%emt 0:00:10]} 32. Bxe8 {[%emt 0:01:54]} Rxe1+ 33. Kg2 Rxe8 {[%emt 0:00:28]} 34. Rxa5 {[%emt 0:00:02]} Rd8 {[%emt 0:00:42]} 35. Kf3 {[%emt 0:00:59]} g5 {[%emt 0:04:21]} 36. Ke4 {[%emt 0:00:58]} d3 {[%emt 0:00:35]} 37. Ra1 {[%emt 0:00:08]} Kg7 {[%emt 0:00:42]} 38. Rd1 {[%emt 0:00:33]} Kg6 {[%emt 0:02:33]} 39. Rxd3 {[%emt 0:00:54]} f5+ {[%emt 0:00:38]} 40. Ke3 {[%emt 0:00:01]} 1/2-1/2

[Event "49th Rilton Cup 2019-20"]
[Site "Stockholm"]
[Date "2020.01.04"]
[Round "8.7"]
[White "Ionov, Sergey"]
[Black "Rathanvel, V S"]
[Result "1/2-1/2"]
[ECO "A04"]
[WhiteElo "2521"]
[BlackElo "2411"]
[Annotator "ChessBase"]
[PlyCount "95"]
[EventDate "2019.12.27"]
[EventType "swiss"]
[EventCountry "SWE"]
[SourceTitle "playchess.com"]
[Source "ChessBase"]
[SourceQuality "1"]
[TimeControl "40/5400+30:1800+30"]

1. Nf3 {[%emt 0:00:00]} c5 {[%emt 0:01:38]} 2. c4 {[%emt 0:01:16]} Nc6 {[%emt 0:01:09]} 3. d4 {[%emt 0:02:30]} cxd4 {[%emt 0:00:35]} 4. Nxd4 {[%emt 0:00:04]} g6 {[%emt 0:12:16]} 5. e4 {[%emt 0:02:26]} Nf6 {[%emt 0:00:08]} 6. Nc3 {[%emt 0:00:07]} d6 {[%emt 0:00:08]} 7. f3 {[%emt 0:04:20]} Bg7 {[%emt 0:00:58]} 8. Be3 {[%emt 0:00:44]} O-O {[%emt 0:01:50]} 9. Qd2 {[%emt 0:01:19]} Nxd4 {[%emt 0:08:53]} 10. Bxd4 {[%emt 0:00:35]} a5 {[%emt 0:03:25]} 11. b3 {[%emt 0:13:48]} Bd7 {[%emt 0:00:27]} 12. Be2 {[%emt 0:00:42]} Bc6 {[%emt 0:04:45]} 13. O-O {[%emt 0:01:43]} Nd7 {[%emt 0:00:09]} 14. Be3 {[%emt 0:00:19]} Nc5 {[%emt 0:00:14]} 15. Rab1 {[%emt 0:02:12]} Qb6 {[%emt 0:00:09]} 16. Rfc1 {[%emt 0:00:44]} Qb4 {[%emt 0:24:01]} 17. Rc2 {[%emt 0:12:53]} Ne6 {[%emt 0:18:24]} 18. Rd1 {[%emt 0:07:45]} Rfc8 {[%emt 0:02:18]} 19. Nd5 {[%emt 0:12:28]} Bxd5 {[%emt 0:03:16]} 20. exd5 {[%emt 0:01:35]} Nc5 {[%emt 0:01:43]} 21. Rb1 {[%emt 0:00:35]} Qxd2 {[%emt 0:03:17]} 22. Bxd2 {[%emt 0:01:38]} Nd7 {[%emt 0:03:06]} 23. a3 {[%emt 0:06:33]} b5 {[%emt 0:01:41]} 24. Rcc1 {[%emt 0:01:17]} bxc4 {[%emt 0:01:25]} 25. Rxc4 {[%emt 0:00:22]} Rxc4 {[%emt 0:01:00]} 26. Bxc4 {[%emt 0:00:53]} Bd4+ {[%emt 0:03:54]} 27. Kf1 {[%emt 0:00:07]} Bc5 {[%emt 0:01:51]} 28. Bb5 {[%emt 0:06:35]} Nb6 {[%emt 0:00:32]} 29. Bc6 {[%emt 0:00:41]} Rb8 {[%emt 0:00:13]} 30. Ra1 {[%emt 0:07:00]} Nc8 {[%emt 0:00:04]} 31. b4 {[%emt 0:01:00]} Bd4 {[%emt 0:00:45]} 32. Ra2 {[%emt 0:01:12]} axb4 {[%emt 0:00:09]} 33. axb4 {[%emt 0:00:05]} Nb6 {[%emt 0:01:00]} 34. Ke2 {[%emt 0:00:35]} e6 {[%emt 0:00:50]} 35. Kd3 {[%emt 0:01:45]} Bg1 {[%emt 0:00:18]} 36. dxe6 {[%emt 0:05:50]} fxe6 {[%emt 0:00:02]} 37. h3 {[%emt 0:00:48]} Nc8 {[%emt 0:01:00]} 38. Ra8 {[%emt 0:03:48]} Rxa8 39. Bxa8 {[%emt 0:00:01]} Kf7 {[%emt 0:00:52]} 40. Bc6 {[%emt 0:00:42]} Nb6 {[%emt 0:00:17]} 41. Bc3 {[%emt 0:30:58]} e5 {[%emt 0:30:39]} 42. Bd2 {[%emt 0:00:00]} d5 {[%emt 0:00:00]} 43. g4 {[%emt 0:00:00]} Ke6 {[%emt 0:00:00]} 44. h4 {[%emt 0:00:00]} Nc4 {[%emt 0:00:00]} 45. Bc3 {[%emt 0:00:00]} h5 {[%emt 0:00:00]} 46. gxh5 {[%emt 0:00:00]} gxh5 {[%emt 0:00:00]} 47. Be8 {[%emt 0:00:00]} Bf2 {[%emt 0:00:00]} 48. Bxh5 1/2-1/2

[Event "49th Rilton Cup 2019-20"]
[Site "Stockholm"]
[Date "2020.01.04"]
[Round "8.8"]
[White "Hauge, Lars Oskar"]
[Black "Pantzar, Milton"]
[Result "1/2-1/2"]
[ECO "C26"]
[WhiteElo "2504"]
[BlackElo "2410"]
[Annotator "ChessBase"]
[PlyCount "141"]
[EventDate "2019.12.27"]
[EventType "swiss"]
[EventCountry "SWE"]
[SourceTitle "playchess.com"]
[Source "ChessBase"]
[SourceQuality "1"]
[TimeControl "40/5400+30:1800+30"]

1. e4 {[%emt 0:00:00]} e5 {[%emt 0:00:00]} 2. Nc3 {[%emt 0:00:00]} Nf6 {[%emt 0:00:15]} 3. Bc4 {[%emt 0:00:00]} Bc5 {[%emt 0:05:35]} 4. d3 {[%emt 0:00:06]} c6 {[%emt 0:03:08]} 5. f4 {[%emt 0:00:58]} d5 {[%emt 0:03:31]} 6. exd5 {[%emt 0:00:37]} Ng4 {[%emt 0:02:12]} 7. Nf3 {[%emt 0:00:07]} Nf2 {[%emt 0:05:09]} 8. Qe2 {[%emt 0:00:18]} Nxh1 {[%emt 0:01:11]} 9. Qxe5+ {[%emt 0:00:43]} Qe7 {[%emt 0:34:39]} 10. Ne4 {[%emt 0:00:50]} f6 {[%emt 0:01:30]} 11. Qxe7+ {[%emt 0:05:24]} Bxe7 {[%emt 0:00:06]} 12. Be3 {[%emt 0:01:10]} cxd5 {[%emt 0:02:52]} 13. Bxd5 {[%emt 0:00:25]} Nc6 {[%emt 0:00:06]} 14. Ke2 {[%emt 0:11:58]} Bg4 {[%emt 0:02:35]} 15. Rxh1 {[%emt 0:09:19]} O-O-O {[%emt 0:04:28]} 16. Bxc6 {[%emt 0:00:45]} bxc6 {[%emt 0:00:06]} 17. Kf2 {[%emt 0:07:51]} Kb7 {[%emt 0:02:15]} 18. Nfd2 {[%emt 0:00:37]} Ka8 {[%emt 0:08:55]} 19. Nb3 {[%emt 0:05:24]} h5 {[%emt 0:03:56]} 20. Bc5 {[%emt 0:02:09]} Bxc5+ {[%emt 0:01:51]} 21. Nbxc5 {[%emt 0:00:18]} h4 {[%emt 0:00:31]} 22. h3 {[%emt 0:00:50]} Bc8 {[%emt 0:02:08]} 23. a3 {[%emt 0:04:50]} Rhf8 {[%emt 0:01:23]} 24. Rf1 {[%emt 0:05:19]} g5 {[%emt 0:04:58]} 25. Ke3 {[%emt 0:00:37]} Rfe8 {[%emt 0:03:14]} 26. Kd2 {[%emt 0:01:25]} gxf4 {[%emt 0:00:56]} 27. Nxf6 {[%emt 0:05:01]} Re5 {[%emt 0:00:26]} 28. Nfe4 {[%emt 0:06:46]} Rf8 {[%emt 0:01:27]} 29. Ke2 {[%emt 0:06:41]} Re7 {[%emt 0:00:27]} 30. Rf2 {[%emt 0:02:55]} Rg7 {[%emt 0:01:04]} 31. Nd2 {[%emt 0:09:39]} Rfg8 {[%emt 0:01:27]} 32. Rxf4 {[%emt 0:00:10]} Rxg2+ {[%emt 0:00:05]} 33. Ke3 {[%emt 0:00:09]} R2g3+ {[%emt 0:01:18]} 34. Nf3 {[%emt 0:04:51]} Rxh3 {[%emt 0:01:49]} 35. Rxh4 {[%emt 0:00:51]} Rg2 {[%emt 0:01:14]} 36. Rxh3 {[%emt 0:02:29]} Bxh3 {[%emt 0:00:02]} 37. Nd4 {[%emt 0:00:24]} Rg6 {[%emt 0:01:07]} 38. Kd2 {[%emt 0:01:00]} Kb8 {[%emt 0:00:17]} 39. b4 {[%emt 0:01:29]} Kc7 {[%emt 0:00:24]} 40. a4 {[%emt 0:02:44]} Bc8 {[%emt 0:00:24]} 41. Kc3 {[%emt 0:32:01]} Rh6 {[%emt 0:03:10]} 42. Ncb3 {[%emt 0:00:00]} Rh4 {[%emt 0:02:14]} 43. Na5 {[%emt 0:00:00]} Bd7 {[%emt 0:00:33]} 44. Nab3 {[%emt 0:00:00]} Bc8 {[%emt 0:00:43]} 45. Nd2 {[%emt 0:00:00]} Rh5 {[%emt 0:01:07]} 46. N4b3 {[%emt 0:00:00]} Rh1 {[%emt 0:01:36]} 47. Nf3 {[%emt 0:00:00]} Rh5 {[%emt 0:00:53]} 48. Kd4 {[%emt 0:00:00]} Rd5+ {[%emt 0:02:37]} 49. Kc3 {[%emt 0:00:00]} Rh5 {[%emt 0:00:10]} 50. a5 {[%emt 0:00:00]} Bg4 {[%emt 0:01:13]} 51. Nfd4 {[%emt 0:00:00]} Bc8 {[%emt 0:01:48]} 52. Nc5 {[%emt 0:00:00]} Rh4 {[%emt 0:00:55]} 53. Nf3 {[%emt 0:00:00]} Rh3 {[%emt 0:01:17]} 54. Ng5 {[%emt 0:00:00]} Rh2 {[%emt 0:01:04]} 55. Kb3 {[%emt 0:00:00]} Bg4 {[%emt 0:01:21]} 56. c4 {[%emt 0:00:00]} Rh5 {[%emt 0:01:31]} 57. Nge4 {[%emt 0:00:00]} Rh8 {[%emt 0:01:04]} 58. Kc3 {[%emt 0:00:00]} Bc8 {[%emt 0:00:30]} 59. Nd2 {[%emt 0:00:00]} Rf8 {[%emt 0:00:55]} 60. Ndb3 {[%emt 0:00:00]} Rh8 {[%emt 0:00:06]} 61. Nd4 {[%emt 0:00:00]} Rh5 {[%emt 0:00:31]} 62. Ne4 {[%emt 0:00:00]} Rh6 {[%emt 0:02:24]} 63. Nf3 {[%emt 0:00:00]} Bf5 {[%emt 0:00:51]} 64. Nc5 {[%emt 0:00:00]} Bc8 {[%emt 0:00:17]} 65. Nd4 {[%emt 0:00:00]} Rh5 {[%emt 0:00:06]} 66. Ne4 {[%emt 0:00:00]} Rh6 {[%emt 0:00:15]} 67. b5 {[%emt 0:00:00]} Bd7 {[%emt 0:02:49]} 68. Nc5 {[%emt 0:00:00]} cxb5 {[%emt 0:00:51]} 69. cxb5 {[%emt 0:00:00]} Be8 {[%emt 0:01:22]} 70. Ne4 {[%emt 0:01:10]} Rh1 {[%emt 0:01:22]} 71. Nd2 {[%emt 0:02:50]} 1/2-1/2

[Event "49th Rilton Cup 2019-20"]
[Site "Stockholm"]
[Date "2020.01.04"]
[Round "8.9"]
[White "Quesada Perez, Luis Ernesto"]
[Black "Kaasen, Tor Fredrik"]
[Result "1-0"]
[ECO "E21"]
[WhiteElo "2499"]
[BlackElo "2385"]
[Annotator "RC"]
[PlyCount "131"]
[EventDate "2019.12.27"]
[EventType "swiss"]
[EventCountry "SWE"]
[SourceTitle "playchess.com"]
[Source "ChessBase"]
[SourceQuality "1"]
[TimeControl "40/5400+30:1800+30"]

1. d4 {[%emt 0:00:00]} Nf6 {[%emt 0:01:48]} 2. c4 {[%emt 0:00:00]} e6 {[%emt 0:00:28]} 3. Nc3 {[%emt 0:00:00]} Bb4 {[%emt 0:00:18]} 4. Nf3 {[%emt 0:00:03]} d5 {[%emt 0:01:42]} 5. Qa4+ {[%emt 0:00:10]} Nc6 {[%emt 0:00:08]} 6. Ne5 {[%emt 0:00:05]} Bd7 {[%emt 0:03:01]} 7. Nxd7 {[%emt 0:00:17]} Nxd7 {[%emt 0:01:57]} 8. cxd5 {[%emt 0:03:53]} Nb6 {[%emt 0:02:31]} 9. Qb5 {[%emt 0:00:01]} Nxd5 {[%emt 0:11:45]} 10. Bd2 {[%emt 0:00:41]} O-O {[%emt 0:02:32]} 11. e3 {[%emt 0:00:09]} a6 {[%emt 0:01:48]} 12. Qd3 {[%emt 0:04:51]} e5 {[%emt 0:06:38]} 13. dxe5 {[%emt 0:00:45]} Nxe5 {[%emt 0:01:34]} 14. Qxd5 {[%emt 0:01:53]} Qxd5 {[%emt 0:00:18]} 15. Nxd5 {[%emt 0:00:04]} Bxd2+ {[%emt 0:00:07]} 16. Kxd2 {[%emt 0:00:12]} Rad8 {[%emt 0:00:19]} 17. e4 {[%emt 0:20:22]} c6 {[%emt 0:00:19]} 18. f4 {[%emt 0:01:38]} Ng4 {[%emt 0:05:17]} 19. Be2 {[%emt 0:13:24]} Nf6 {[%emt 0:07:54]} 20. Bf3 {[%emt 0:05:19]} Rfe8 {[%emt 0:04:25]} 21. Rhe1 {[%emt 0:03:35]} cxd5 {[%emt 0:02:09]} 22. exd5 {[%emt 0:00:14]} Rxe1 {[%emt 0:02:22]} 23. Kxe1 {[%emt 0:01:55]} Nxd5 {[%emt 0:00:42]} 24. Rd1 {[%emt 0:02:15]} Re8+ {[%emt 0:02:47]} 25. Kf2 {[%emt 0:00:02]} Nxf4 {[%emt 0:00:52]} 26. Bxb7 {[%emt 0:00:10]} Re2+ {[%emt 0:04:55]} 27. Kf1 {[%emt 0:02:02]} g5 {[%emt 0:02:54]} 28. Rb1 {[%emt 0:02:27]} Re6 {[%emt 0:04:41]} 29. b4 {[%emt 0:09:04]} Nd3 {[%emt 0:05:54]} 30. a3 {[%emt 0:00:53]} Kg7 {[%emt 0:05:03]} 31. Rd1 {[%emt 0:03:23]} Ne5 {[%emt 0:05:07]} 32. Rd4 {[%emt 0:06:40]} f5 {[%emt 0:01:55]} 33. h3 {[%emt 0:01:09]} Kf6 {[%emt 0:00:34]} 34. g4 {[%emt 0:07:41]} Rb6 {[%emt 0:03:18]} 35. Bg2 {[%emt 0:00:56]} fxg4 {[%emt 0:03:35]} 36. hxg4 {[%emt 0:00:02]} Ke7 {[%emt 0:00:32]} 37. Ke2 {[%emt 0:03:52]} Rd6 {[%emt 0:02:01]} 38. Re4 {[%emt 0:00:33]} Kf6 {[%emt 0:00:52]} 39. a4 {[%emt 0:00:58]} Nd3 {[%emt 0:01:45]} 40. Bf1 {[%emt 0:01:49]} Ne5 {[%emt 0:02:20]} 41. Ke3 {[%emt 0:31:00]} Ke6 {[%emt 0:02:28]} 42. a5 {[%emt 0:00:00]} Kd5 {[%emt 0:03:31]} 43. Be2 {[%emt 0:00:00]} Re6 {[%emt 0:04:03]} 44. Rd4+ {[%emt 0:00:00]} Kc6 {[%emt 0:00:05]} 45. Kd2 {[%emt 0:00:00]} Kc7 {[%emt 0:02:54]} 46. Re4 {[%emt 0:00:00]} Rd6+ {[%emt 0:03:15]} 47. Kc3 {[%emt 0:00:00]} Ng6 {[%emt 0:00:26]} 48. Bc4 {[%emt 0:00:00]} Rf6 {[%emt 0:01:16]} 49. Kb3 {[%emt 0:00:00]} Rf3+ {[%emt 0:04:36]} 50. Ka4 {[%emt 0:00:00]} Rf4 {[%emt 0:02:43]} 51. Rxf4 {[%emt 0:00:00]} gxf4 {[%emt 0:00:05]} 52. Bxa6 {[%emt 0:00:00]} Ne5 {[%emt 0:00:24]} 53. b5 {[%emt 0:05:48]} Nxg4 {[%emt 0:03:53]} 54. b6+ {[%emt 0:00:08]} Kc6 {[%emt 0:02:47]} 55. Bb5+ {[%emt 0:00:44]} Kb7 {[%emt 0:00:26]} 56. Be2 {[%emt 0:00:29]} Ne5 {[%emt 0:01:32]} 57. Kb5 {[%emt 0:00:07]} f3 {[%emt 0:00:16]} 58. a6+ {[%emt 0:00:07]} Kb8 {[%emt 0:00:30]} 59. Bd1 {[%emt 0:03:39]} f2 {[%emt 0:02:27]} 60. Be2 {[%emt 0:00:11]} Kc8 {[%emt 0:01:22]} 61. Bf1 {[%emt 0:00:51]} Nf3 {[%emt 0:00:42]} 62. a7 {[%emt 0:00:14]} Kb7 {[%emt 0:01:39]} 63. Bg2 {[%emt 0:00:09]} f1=Q+ {[%emt 0:00:27]} 64. Bxf1 {[%emt 0:00:07]} Nd4+ {[%emt 0:00:09]} 65. Kc5 {[%emt 0:00:07]} Ne6+ {[%emt 0:00:34]} 66. Kd6 {[%emt 0:00:15]} 1-0

[Event "49th Rilton Cup 2019-20"]
[Site "Stockholm"]
[Date "2020.01.04"]
[Round "8.12"]
[White "Alexakis, Dimitrios"]
[Black "Sidhant, Mohapatra"]
[Result "1-0"]
[ECO "C45"]
[WhiteElo "2093"]
[BlackElo "2338"]
[Annotator "NA"]
[PlyCount "117"]
[EventDate "2019.12.27"]
[EventType "swiss"]
[EventCountry "SWE"]
[SourceTitle "playchess.com"]
[Source "ChessBase"]
[SourceQuality "1"]
[TimeControl "40/5400+30:1800+30"]

1. e4 {[%emt 0:09:30]} e5 {[%emt 0:00:00]} 2. Nf3 {[%emt 0:00:06]} Nc6 {[%emt 0:00:00]} 3. d4 {[%emt 0:00:03]} exd4 {[%emt 0:00:24]} 4. Nxd4 {[%emt 0:00:05]} Bc5 {[%emt 0:00:36]} 5. Nb3 {[%emt 0:00:06]} Bb6 {[%emt 0:00:08]} 6. Nc3 {[%emt 0:00:05]} Nf6 {[%emt 0:00:11]} 7. Bg5 {[%emt 0:00:07]} h6 {[%emt 0:01:40]} 8. Bh4 {[%emt 0:00:02]} d6 {[%emt 0:02:28]} 9. Qe2 {[%emt 0:00:27]} g5 {[%emt 0:06:32]} 10. Bg3 {[%emt 0:00:05]} Qe7 {[%emt 0:00:09]} 11. h4 {[%emt 0:00:16]} Rg8 {[%emt 0:00:29]} 12. O-O-O {[%emt 0:00:38]} Bd7 {[%emt 0:00:41]} 13. Nd2 {[%emt 0:20:30]} Ba5 {[%emt 0:12:50]} 14. Nd5 {[%emt 0:26:58]} Nxd5 {[%emt 0:00:14]} 15. exd5 {[%emt 0:00:01]} Qxe2 {[%emt 0:00:19]} 16. Bxe2 {[%emt 0:00:03]} Nd4 {[%emt 0:00:15]} 17. Bd3 {[%emt 0:01:43]} Bxd2+ {[%emt 0:00:50]} 18. Kxd2 {[%emt 0:09:34]} Nf5 {[%emt 0:00:20]} 19. Rde1+ {[%emt 0:01:16]} Kf8 {[%emt 0:00:25]} 20. Bxf5 {[%emt 0:00:23]} Bxf5 {[%emt 0:00:07]} 21. hxg5 {[%emt 0:01:25]} hxg5 {[%emt 0:00:30]} 22. Re3 {[%emt 0:00:15]} Kg7 {[%emt 0:04:39]} 23. Rhe1 {[%emt 0:02:22]} Rac8 {[%emt 0:03:10]} 24. f3 {[%emt 0:06:20]} c6 {[%emt 0:11:07]} 25. c3 {[%emt 0:14:02]} cxd5 {[%emt 0:00:31]} 26. Bxd6 {[%emt 0:00:03]} Kg6 {[%emt 0:04:58]} 27. g4 {[%emt 0:05:37]} Bd7 {[%emt 0:02:31]} 28. Re5 {[%emt 0:01:20]} f6 {[%emt 0:03:13]} 29. Re7 {[%emt 0:00:27]} Bc6 {[%emt 0:00:06]} 30. Bc5 {[%emt 0:00:33]} Rge8 {[%emt 0:01:00]} 31. Rxe8 {[%emt 0:00:31]} Rxe8 {[%emt 0:00:04]} 32. Rxe8 {[%emt 0:00:06]} Bxe8 {[%emt 0:00:04]} 33. Bxa7 {[%emt 0:00:03]} f5 {[%emt 0:00:37]} 34. gxf5+ {[%emt 0:01:23]} Kxf5 {[%emt 0:00:01]} 35. Ke3 {[%emt 0:00:11]} Bh5 {[%emt 0:00:43]} 36. Bb6 {[%emt 0:00:47]} Ke6 {[%emt 0:00:59]} 37. a4 g4 {[%emt 0:00:23]} 38. f4 {[%emt 0:01:00]} g3 {[%emt 0:00:14]} 39. a5 {[%emt 0:00:18]} Kf5 {[%emt 0:01:22]} 40. Bc7 {[%emt 0:00:22]} Kg4 {[%emt 0:00:14]} 41. b4 Be8 {[%emt 0:30:04]} 42. f5 {[%emt 0:07:13]} g2 {[%emt 0:00:00]} 43. Bh2 {[%emt 0:00:24]} Kxf5 {[%emt 0:00:00]} 44. Kd4 {[%emt 0:00:22]} Ke6 {[%emt 0:00:00]} 45. Kc5 {[%emt 0:00:09]} Kd7 {[%emt 0:00:00]} 46. Kxd5 {[%emt 0:02:12]} Kc8 {[%emt 0:00:00]} 47. Kc5 {[%emt 0:00:23]} Bf7 {[%emt 0:00:00]} 48. c4 {[%emt 0:04:17]} Be6 {[%emt 0:00:00]} 49. Kb5 {[%emt 0:00:51]} Bd7+ {[%emt 0:00:00]} 50. Kb6 {[%emt 0:00:06]} Be6 {[%emt 0:00:00]} 51. c5 {[%emt 0:00:44]} Bc4 {[%emt 0:00:41]} 52. b5 {[%emt 0:00:13]} Bd3 {[%emt 0:00:39]} 53. a6 {[%emt 0:00:30]} bxa6 {[%emt 0:00:14]} 54. Kxa6 {[%emt 0:00:07]} Kd7 {[%emt 0:00:48]} 55. Kb6 {[%emt 0:00:18]} Ke6 {[%emt 0:00:37]} 56. Kc6 {[%emt 0:00:54]} Be4+ {[%emt 0:00:04]} 57. Kc7 {[%emt 0:00:25]} Kd5 {[%emt 0:00:04]} 58. Bg1 {[%emt 0:00:03]} Kc4 {[%emt 0:00:06]} 59. b6 {[%emt 0:00:01]} 1-0

[Event "49th Rilton Cup 2019-20"]
[Site "Stockholm"]
[Date "2020.01.04"]
[Round "8.13"]
[White "Oratovsky, Michael"]
[Black "Dragicevic, Drazen"]
[Result "0-1"]
[ECO "B31"]
[WhiteElo "2423"]
[BlackElo "2294"]
[Annotator "NA RC"]
[PlyCount "70"]
[EventDate "2019.12.27"]
[EventType "swiss"]
[EventCountry "SWE"]
[SourceTitle "playchess.com"]
[Source "ChessBase"]
[SourceQuality "1"]
[TimeControl "40/5400+30:1800+30"]

1. e4 {[%emt 0:01:09]} c5 {[%emt 0:00:00]} 2. Nf3 {[%emt 0:00:11]} Nc6 {[%emt 0:00:19]} 3. Bb5 {[%emt 0:00:08]} g6 {[%emt 0:00:40]} 4. Bxc6 {[%emt 0:00:58]} bxc6 {[%emt 0:01:36]} 5. O-O {[%emt 0:00:30]} Bg7 {[%emt 0:00:11]} 6. Re1 {[%emt 0:00:07]} Nh6 {[%emt 0:01:39]} 7. c3 {[%emt 0:02:57]} O-O {[%emt 0:00:32]} 8. d4 {[%emt 0:00:26]} cxd4 {[%emt 0:04:09]} 9. cxd4 {[%emt 0:02:15]} d5 {[%emt 0:00:09]} 10. e5 {[%emt 0:00:21]} f6 {[%emt 0:00:09]} 11. e6 {[%emt 0:04:27]} a5 {[%emt 0:20:52]} 12. Bf4 {[%emt 0:18:59]} g5 {[%emt 0:06:38]} 13. Bg3 {[%emt 0:05:05]} Nf5 $14 {[%emt 0:02:12]} 14. Qc2 {[%emt 0:16:21]} Nxg3 {[%emt 0:02:52]} 15. hxg3 {[%emt 0:00:38]} f5 {[%emt 0:19:05]} 16. g4 {[%emt 0:05:14]} Qd6 {[%emt 0:15:23]} 17. gxf5 {[%emt 0:02:02]} Qf4 {[%emt 0:01:37]} 18. Qxc6 {[%emt 0:18:34]} Ra6 {[%emt 0:05:58]} 19. Qc2 {[%emt 0:11:20]} g4 {[%emt 0:01:52]} 20. Ne5 {[%emt 0:06:21]} Qxd4 {[%emt 0:05:04]} 21. Nf7 {[%emt 0:01:21]} Qxb2 {[%emt 0:02:05]} 22. Nh6+ {[%emt 0:00:45]} Kh8 {[%emt 0:00:20]} 23. Nf7+ {[%emt 0:00:19]} Rxf7 {[%emt 0:02:18]} 24. Qxc8+ {[%emt 0:00:58]} Rf8 {[%emt 0:00:02]} 25. Qxa6 {[%emt 0:00:13]} Qxa1 {[%emt 0:00:10]} 26. Qxa5 {[%emt 0:00:41]} Qd4 {[%emt 0:01:04]} 27. Qd2 {[%emt 0:00:36]} g3 {[%emt 0:00:16]} 28. Rd1 {[%emt 0:00:31]} gxf2+ {[%emt 0:00:27]} 29. Kf1 {[%emt 0:00:00]} Qg4 {[%emt 0:02:28]} 30. Qxd5 {[%emt 0:00:53]} Rxf5 {[%emt 0:00:13]} 31. Qb3 {[%emt 0:00:37]} Qh4 {[%emt 0:02:31]} 32. Rd8+ {[%emt 0:00:32]} Bf8 {[%emt 0:00:06]} 33. Qh3 {[%emt 0:00:29]} Qf4 {[%emt 0:01:48]} 34. Nd2 {[%emt 0:00:23]} Qe5 {[%emt 0:00:48]} 35. Nf3 {[%emt 0:00:33]} Rxf3 {[%emt 0:00:22]} 0-1